bitfinex/quotes_SOLUSD_20260118
["timestamp","ask_amount","ask_price","bid_price","bid_amount"]
[1768777653311,8.06842713,141.91,141.87,7.04870656]
[1768777653514,1.02154254,141.87,141.85,30.0]
[1768777654893,1.02154254,141.9,141.85,37.04955877]
[1768777655091,1.02154254,141.87,141.85,30.0]
[1768777656115,1.02154254,141.88,141.85,37.04962113]
[1768777657296,1.02154254,141.88,141.85,37.01962114]
[1768777657802,0.8483792,141.89,141.85,37.01962114]
[1768777658007,0.8483792,141.89,141.85,42.47566075]
[1768777658211,0.8483792,141.89,141.86,5.45603961]
[1768777658514,0.8483792,141.89,141.86,30.0]
[1768777659102,0.8483792,141.88,141.86,30.0]
[1768777661216,0.8483792,141.87,141.86,30.0]
[1768777662094,0.8483792,141.88,141.86,30.0]
[1768777664220,6.30441881,141.87,141.82,0.91210425]
[1768777664407,6.30441881,141.87,141.82,7.9629091]
[1768777664715,6.30441881,141.87,141.82,13.41894871]
[1768777664915,6.30441881,141.87,141.83,0.91210425]
[1768777665114,6.30441881,141.87,141.83,7.96279207]
[1768777665300,0.8483792,141.87,141.83,13.41883168]
[1768777665609,7.04846384,141.88,141.84,13.41814387]
[1768777665993,7.89684304,141.88,141.84,6.36814386]
[1768777666410,7.89684304,141.88,141.84,0.91210425]
[1768777666618,0.8483792,141.89,141.85,6.36814386]
[1768777668634,0.8483792,141.89,141.85,13.41763323]
[1768777669001,10.03335785,141.9,141.86,0.91210425]
[1768777669309,0.8483792,141.9,141.86,3.04953859]
[1768777669706,0.8483792,141.9,141.86,0.91210425]
[1768777669926,0.8483792,141.9,141.86,3.04953859]
[1768777670219,0.2,141.92,141.89,2.13743434]
[1768777670998,0.2,141.92,141.88,10.09737462]
[1768777671199,1.0483792,141.92,141.88,10.09737462]
[1768777671399,8.0946435,141.92,141.88,10.09737462]
[1768777675324,0.80143259,141.91,141.87,23.32498356]
[1768777675704,0.80143259,141.89,141.85,0.83644172]
[1768777675908,0.80143259,141.88,141.86,30.0]
[1768777676101,2.93886693,141.88,141.86,30.0]
[1768777676417,0.80143259,141.88,141.83,2.97387606]
[1768777676613,0.80143259,141.87,141.82,18.41387606]
[1768777676924,0.80143259,141.87,141.83,9.18779347]
[1768777677118,0.80143259,141.87,141.83,10.02423519]
[1768777677842,7.85020372,141.87,141.83,7.88680085]
[1768777678530,9.98763806,141.87,141.83,7.88680085]
[1768777679319,7.85020372,141.87,141.83,7.88680085]
[1768777679713,9.98763806,141.87,141.83,7.88680085]
[1768777680225,0.80143259,141.89,141.85,0.83644172]
[1768777680421,0.80143259,141.91,141.87,2.97387606]
[1768777680617,1.00143259,141.92,141.87,2.97387606]
[1768777680818,1.00143259,141.92,141.88,2.97387606]
[1768777681150,1.00143259,141.92,141.89,2.13743434]
[1768777681430,1.00143259,141.92,141.88,2.97387606]
[1768777681634,1.00143259,141.92,141.88,0.83644172]
[1768777682122,1.00143259,141.92,141.88,2.97387606]
[1768777682324,1.00143259,141.92,141.88,10.02173964]
[1768777682840,1.00143259,141.92,141.88,7.8843053]
[1768777683134,10.18523518,141.92,141.88,0.83644172]
[1768777683318,0.80143259,141.91,141.87,22.48861421]
[1768777683514,0.80143259,141.91,141.87,23.32505593]
[1768777683724,10.18523518,141.92,141.87,23.32505593]
[1768777684841,10.18523518,141.92,141.87,25.46249027]
[1768777685138,0.2,141.92,141.89,0.83644172]
[1768777688440,0.2,141.92,141.89,10.0214377]
[1768777688644,0.2,141.92,141.89,7.88400336]
[1768777688952,0.2,141.92,141.89,10.02156675]
[1768777689317,0.2,141.92,141.9,0.82515338]
[1768777691440,0.2,141.92,141.86,0.81149371]
[1768777691441,0.80143259,141.91,141.86,0.81149371]
[1768777691636,0.2,141.92,141.88,7.85939585]
[1768777692543,0.2,141.92,141.89,0.80478132]
[1768777694167,8.04767751,141.92,141.88,7.84604817]
[1768777694739,1.00143259,141.92,141.88,7.84604817]
[1768777694925,0.2,141.92,141.89,0.79158695]
[1768777696722,0.2,141.92,141.89,7.83919171]
[1768777699148,0.2,141.92,141.9,0.75990446]
[1768777699951,0.80143259,141.95,141.91,0.75990446]
[1768777700130,0.80143259,141.95,141.9,2.89121896]
[1768777700948,0.80143259,141.95,141.91,7.04671975]
[1768777701451,0.80143259,141.95,141.91,7.79445483]
[1768777701638,0.80143259,141.96,141.92,0.74773508]
[1768777701841,0.80143259,141.96,141.92,2.88516942]
[1768777702352,0.80143259,141.96,141.92,0.74773508]
[1768777703548,0.80143259,141.96,141.93,7.04572676]
[1768777704951,0.68322695,141.98,141.93,7.76995057]
[1768777705149,0.68322695,141.98,141.94,0.72422381]
[1768777705449,0.68322695,141.97,141.93,7.76424056]
[1768777706031,0.68322695,141.98,141.94,0.7185138]
[1768777707050,2.82066129,141.98,141.94,7.76335361]
[1768777707860,0.68322695,141.96,141.93,7.04554425]
[1768777708152,0.68322695,141.96,141.94,7.04508007]
[1768777708545,0.68322695,141.98,141.94,7.04508007]
[1768777709535,0.68322695,141.98,141.94,7.7414022]
[1768777710533,0.68322695,141.98,141.95,2.13743434]
[1768777710934,0.68322695,141.98,141.95,2.134167]
[1768777711137,0.68322695,142.0,141.97,9.17744998]
[1768777711342,0.2,142.01,141.97,9.86305495]
[1768777711542,0.88322695,142.01,141.97,9.86305495]
[1768777713068,0.88322695,142.01,141.97,7.72888795]
[1768777713365,0.68322695,142.0,141.96,7.04407115]
[1768777713572,0.68322695,142.0,141.96,7.71920374]
[1768777713774,0.68322695,142.0,141.96,0.67513259]
[1768777714059,2.81739395,141.97,141.93,0.67513259]
[1768777714278,2.81739395,141.97,141.93,7.72054642]
[1768777715045,0.68322695,141.95,141.92,7.04608716]
[1768777716695,2.81739395,141.95,141.91,22.48670727]
[1768777716848,0.68322695,141.95,141.91,22.48670727]
[1768777717475,17.60895706,141.98,141.91,22.48670727]
[1768777717476,0.68322695,141.97,141.93,7.04572676]
[1768777717954,0.6455105,141.95,141.92,7.04606401]
[1768777720682,0.58551049,141.95,141.92,7.04606401]
[1768777721463,0.52551049,141.95,141.92,7.04606401]
[1768777721760,2.134167,141.93,141.9,7.04708488]
[1768777722358,40.1,141.98,141.91,7.04671262]
[1768777722558,2.134167,141.93,141.91,7.04671262]
[1768777722954,2.134167,141.94,141.9,7.04701662]
[1768777723273,2.134167,141.93,141.9,7.04701662]
[1768777723476,2.7796775,141.96,141.91,7.7287618]
[1768777723665,2.7796775,141.95,141.91,7.7287618]
[1768777723978,0.6455105,141.94,141.9,7.04705546]
[1768777724170,2.71967749,141.94,141.9,7.04705546]
[1768777724477,2.134167,141.93,141.9,7.04705546]
[1768777724855,24.65525959,141.96,141.9,7.04705546]
[1768777725076,2.134167,141.94,141.9,7.04705546]
[1768777726082,0.6455105,141.94,141.9,7.04705546]
[1768777726857,0.6455105,141.94,141.9,7.72917526]
[1768777728379,0.58932576,141.94,141.9,7.72917526]
[1768777728675,0.58932576,141.94,141.91,0.6821198]
[1768777729979,0.58932576,141.94,141.91,7.72845707]
[1768777730676,2.7796775,141.95,141.91,7.72845707]
[1768777733977,2.80887201,141.94,141.9,7.04714778]
[1768777734192,0.67470501,141.93,141.9,7.04714778]
[1768777735088,0.67470501,141.91,141.88,7.04812895]
[1768777735462,2.80887201,141.89,141.84,0.64652443]
[1768777735763,0.67470501,141.9,141.86,7.69569421]
[1768777735964,2.80887201,141.89,141.85,7.0496779]
[1768777736863,2.80887201,141.89,141.8,0.64652443]
[1768777736864,0.67470501,141.85,141.8,0.64652443]
[1768777737176,0.67470501,141.84,141.81,7.05168633]
[1768777737688,0.67470501,141.84,141.8,2.78069143]
[1768777737992,0.67470501,141.85,141.81,2.78069143]
[1768777738166,0.67470501,141.87,141.82,9.83188308]
[1768777738486,0.67470501,141.87,141.83,2.78069143]
[1768777739089,0.67470501,141.87,141.82,9.83188308]
[1768777739592,0.67470501,141.87,141.82,27.4598622]
[1768777739975,0.67470501,141.87,141.83,2.134167]
[1768777740175,0.67470501,141.87,141.83,0.64652443]
[1768777740476,0.67470501,141.91,141.86,2.78069143]
[1768777740862,0.67470501,141.9,141.86,0.64652443]
[1768777741063,0.67470501,141.9,141.84,0.64652443]
[1768777741291,0.67470501,141.9,141.85,2.78069143]
[1768777741480,9.85608995,141.9,141.85,9.82998862]
[1768777741686,0.67470501,141.89,141.86,2.134167]
[1768777742085,0.67470501,141.89,141.85,2.134167]
[1768777742467,0.67470501,141.88,141.82,7.05084032]
[1768777742676,0.67470501,141.87,141.83,2.134167]
[1768777742980,0.67470501,141.87,141.84,2.134167]
[1768777743294,7.04721794,141.9,141.85,2.134167]
[1768777744593,7.04721794,141.9,141.86,2.134167]
[1768777744897,7.04721794,141.9,141.85,9.183567]
[1768777745267,7.7224225,141.89,141.85,9.183567]
[1768777745471,0.67470501,141.88,141.85,9.183567]
[1768777745794,0.67470501,141.9,141.87,2.134167]
[1768777746090,0.67470501,141.87,141.83,2.134167]
[1768777746283,0.67470501,141.86,141.81,0.64652443]
[1768777746594,2.134167,141.87,141.83,7.69688666]
[1768777746787,24.66368439,141.91,141.84,7.05019273]
[1768777746991,42.23785139,141.91,141.85,2.134167]
[1768777747382,2.134167,141.9,141.85,2.134167]
[1768777748069,2.134167,141.9,141.84,9.83074163]
[1768777748270,2.134167,141.9,141.84,9.1842172]
[1768777748471,0.67470501,141.88,141.84,9.1842172]
[1768777749601,0.67470501,141.88,141.85,2.134167]
[1768777750405,7.72294479,141.88,141.85,2.134167]
[1768777750700,0.67470501,141.88,141.85,2.134167]
[1768777753007,7.7220369,141.9,141.86,2.134167]
[1768777753494,0.67470501,141.89,141.86,2.134167]
[1768777753695,0.67470501,141.87,141.83,9.18456779]
[1768777753893,0.67470501,141.87,141.83,9.83109222]
[1768777754100,0.67470501,141.87,141.83,7.69692522]
[1768777754289,0.67470501,141.87,141.84,2.134167]
[1768777754492,0.67470501,141.87,141.83,9.83109222]
[1768777755088,0.67470501,141.87,141.85,2.134167]
[1768777755403,0.67470501,141.87,141.84,9.18428438]
[1768777755607,0.67470501,141.87,141.84,7.05011738]
[1768777755788,0.67470501,141.86,141.82,9.18505807]
[1768777756407,0.67470501,141.86,141.82,7.05089107]
[1768777756707,0.67470501,141.84,141.8,20.4108417]
[1768777757093,0.67470501,141.84,141.81,7.05161422]
[1768777757806,0.67470501,141.84,141.8,7.69868259]
[1768777758191,0.67470501,141.84,141.8,7.05215816]
[1768777758712,0.67470501,141.83,141.8,7.05215816]
[1768777759009,0.61470896,141.83,141.8,7.05215816]
[1768777760987,0.67470501,141.84,141.8,0.64652443]
[1768777761191,40.77470501,141.88,141.83,2.78069143]
[1768777761399,0.67470501,141.88,141.84,2.134167]
[1768777761598,0.67470501,141.88,141.85,2.134167]
[1768777761917,7.72308502,141.88,141.85,2.134167]
[1768777762119,7.72308502,141.88,141.84,2.78069143]
[1768777763013,7.72308502,141.88,141.85,2.134167]
[1768777764717,0.57071852,141.9,141.85,7.66394411]
[1768777764893,7.61793486,141.9,141.86,2.134167]
[1768777765403,0.57071852,141.89,141.86,2.134167]
[1768777767215,0.57071852,141.89,141.86,9.18335295]
[1768777768514,0.57071852,141.89,141.86,2.134167]
[1768777768819,0.57071852,141.89,141.85,9.79794265]
[1768777769424,0.57071852,141.88,141.85,7.04950622]
[1768777772219,0.57071852,141.88,141.85,9.18367322]
[1768777772899,0.57071852,141.88,141.85,9.18699899]
[1768777773104,0.57071852,141.88,141.86,2.13749277]
[1768777773598,0.57071852,141.88,141.85,7.04950622]
[1768777773922,0.57071852,141.88,141.85,9.18699899]
[1768777775897,0.57071852,141.89,141.86,2.13749277]
[1768777776118,0.57071852,141.89,141.87,2.13749277]
[1768777777010,7.0473031,141.9,141.87,2.13749277]
[1768777777210,7.61802162,141.9,141.87,2.13749277]
[1768777777516,0.57071852,141.9,141.88,2.13749277]
[1768777777701,0.57071852,141.9,141.88,2.1074928]
[1768777779643,0.56980766,141.93,141.89,2.13749277]
[1768777779801,0.56980766,141.92,141.88,7.61933116]
[1768777780006,0.56980766,141.88,141.81,0.57123738]
[1768777780201,0.56980766,141.81,141.77,30.0]
[1768777780407,0.56980766,141.77,141.73,3.78095935]
[1768777780706,0.56980766,141.81,141.76,9.19160971]
[1768777780909,0.56980766,141.81,141.75,0.57123738]
[1768777780910,0.56980766,141.8,141.75,2.13749277]
[1768777781105,0.56980766,141.79,141.75,2.13749277]
[1768777781415,16.00980766,141.79,141.75,2.13749277]
[1768777781728,0.56980766,141.79,141.75,7.05462524]
[1768777781920,9.76007014,141.79,141.74,7.62626623]
[1768777782721,0.56980766,141.74,141.68,0.1]
[1768777782924,2.13749277,141.69,141.64,7.63121996]
[1768777783118,2.13749277,141.69,141.63,0.57123738]
[1768777783119,17.57749277,141.68,141.63,0.57123738]
[1768777783318,2.13749277,141.67,141.63,0.57123738]
[1768777783538,24.63621676,141.67,141.63,0.57123738]
[1768777783746,0.56980766,141.63,141.61,18.22737139]
[1768777783925,0.56980766,141.63,141.47,35.24905384]
[1768777783926,22.49872399,141.67,141.49,0.57123738]
[1768777783927,0.56980766,141.61,141.49,0.57123738]
[1768777784290,2.13749277,141.54,141.49,0.57123738]
[1768777784408,2.13749277,141.54,141.48,9.2056296]
[1768777784409,3.62585646,141.48,141.33,35.29162759]
[1768777784748,2.07749277,141.36,141.32,0.57123738]
[1768777784915,5.49531172,141.35,141.29,0.57123738]
[1768777785232,15.44,141.38,141.3,5.49531172]
[1768777785440,0.06000004,141.47,141.38,0.57123738]
[1768777785619,5.49531172,141.42,141.38,0.57123738]
[1768777785813,7.07005747,141.45,141.38,0.57123738]
[1768777786013,5.49531172,141.43,141.38,0.57123738]
[1768777786213,22.07005747,141.45,141.32,0.57123738]
[1768777786411,5.49531172,141.38,141.35,0.57123738]
[1768777786909,15.44,141.43,141.35,0.57123738]
[1768777787132,5.49531172,141.38,141.35,0.57123738]
[1768777787345,7.06905231,141.47,141.36,0.57123738]
[1768777787516,5.49531172,141.42,141.36,0.57123738]
[1768777787716,5.49531172,141.41,141.37,0.57123738]
[1768777787908,0.06000004,141.4,141.37,0.57123738]
[1768777788349,5.55531176,141.4,141.37,0.57123738]
[1768777788542,5.49531172,141.44,141.38,0.57123738]
[1768777788747,5.49531172,141.41,141.36,7.074055]
[1768777788959,5.49531172,141.39,141.34,7.07470755]
[1768777789259,5.49531172,141.37,141.32,7.07602487]
[1768777789955,5.49531172,141.33,141.27,23.19155615]
[1768777790128,0.56980766,141.38,141.3,7.07707559]
[1768777790333,0.56980766,141.39,141.3,7.07707732]
[1768777790534,5.49531172,141.35,141.3,7.07707732]
[1768777790727,5.49531172,141.34,141.3,7.6483147]
[1768777790933,5.49531172,141.35,141.3,7.6483147]
[1768777791144,0.56980766,141.4,141.32,0.57123738]
[1768777791448,5.49531172,141.41,141.35,0.57123738]
[1768777791651,5.49531172,141.4,141.35,0.57123738]
[1768777792149,5.49531172,141.39,141.35,0.57123738]
[1768777792528,5.49531172,141.4,141.35,0.57123738]
[1768777792747,5.49531172,141.4,141.35,7.64563056]
[1768777792933,5.49531172,141.39,141.35,0.57123738]
[1768777793325,0.58514448,141.41,141.35,0.57123738]
[1768777793531,5.49531172,141.42,141.37,0.59240574]
[1768777794237,5.49531172,141.43,141.37,13.16128011]
[1768777794534,33.15196287,141.47,141.41,6.08771746]
[1768777794535,13.14953424,141.47,141.41,6.08771746]
[1768777794927,13.14953424,141.47,141.37,7.07356265]
[1768777794928,1.29260822,141.49,141.42,6.08771746]
[1768777795158,7.77383045,141.52,141.46,6.08771746]
[1768777795532,6.20277546,141.52,141.46,6.08771746]
[1768777796034,0.70746374,141.53,141.48,0.59240574]
[1768777796247,48.50259574,141.55,141.49,7.06763728]
[1768777796248,54.7053712,141.55,141.49,7.06763728]
[1768777796551,54.7053712,141.55,141.48,5.49531172]
[1768777796552,5.49531172,141.54,141.48,5.49531172]
[1768777797358,8.35733126,141.55,141.48,5.49531172]
[1768777797555,0.58514448,141.55,141.46,24.74162742]
[1768777797756,0.70746374,141.55,141.49,5.49531172]
[1768777798054,6.20277546,141.56,141.5,5.49531172]
[1768777798261,5.49531172,141.56,141.5,6.08771746]
[1768777798436,5.49531172,141.56,141.51,0.59240574]
[1768777798851,6.0804562,141.57,141.51,13.15422906]
[1768777799044,5.49531172,141.56,141.51,0.59240574]
[1768777799845,8.35628531,141.57,141.51,6.08771746]
[1768777800045,5.49531172,141.56,141.51,0.59240574]
[1768777800362,6.20277546,141.56,141.51,0.59240574]
[1768777800865,5.49531172,141.52,141.47,0.59240574]
[1768777801157,5.49531172,141.51,141.47,0.59240574]
[1768777801862,5.49531172,141.52,141.47,7.66099189]
[1768777802040,6.20277546,141.52,141.47,7.66099189]
[1768777803060,5.49531172,141.51,141.44,0.59240574]
[1768777803261,0.58514448,141.47,141.4,0.59240574]
[1768777803475,5.49531172,141.46,141.42,7.07109051]
[1768777803655,5.49531172,141.46,141.42,7.66349625]
[1768777803839,5.49531172,141.44,141.39,0.59240574]
[1768777804146,5.49531172,141.42,141.36,5.49531172]
[1768777804553,5.49531172,141.44,141.38,5.49531172]
[1768777804746,5.49531172,141.44,141.39,7.07263597]
[1768777806570,5.49531172,141.44,141.4,0.59240574]
[1768777806753,5.49531172,141.45,141.4,0.59240574]
[1768777806958,5.49531172,141.46,141.4,30.83993186]
[1768777807160,6.0804562,141.47,141.41,36.08771746]
[1768777807462,0.58514448,141.47,141.41,30.59240574]
[1768777807661,0.70746374,141.49,141.43,6.08771746]
[1768777807662,6.0804562,141.49,141.43,6.08771746]
[1768777807846,0.58514448,141.49,141.43,6.08771746]
[1768777808169,0.70746374,141.5,141.44,6.08771746]
[1768777808349,0.70746374,141.5,141.45,5.49531172]
[1768777808557,6.78791994,141.51,141.45,6.08771746]
[1768777809073,6.78791994,141.51,141.46,7.06913615]
[1768777809281,6.0804562,141.47,141.45,29.22722592]
[1768777809456,6.0804562,141.47,141.45,28.45445184]
[1768777809457,5.49531172,141.46,141.45,28.45445184]
[1768777809651,5.49531172,141.46,141.45,26.57638167]
[1768777809856,5.49531172,141.46,141.45,20.94166712]
[1768777810247,5.49531172,141.46,141.41,0.59240574]
[1768777810446,5.49531172,141.46,141.41,7.66390953]
[1768777810672,5.49531172,141.46,141.42,0.59240574]
[1768777810869,5.49531172,141.45,141.42,0.59240574]
[1768777811170,7.06876959,141.47,141.42,0.59240574]
[1768777811473,5.49531172,141.45,141.42,0.59240574]
[1768777811768,5.49531172,141.46,141.42,0.59240574]
[1768777811973,5.49531172,141.45,141.42,0.59240574]
[1768777812353,5.49531172,141.45,141.4,7.66442924]
[1768777812550,5.49531172,141.44,141.4,0.59240574]
[1768777812957,24.74036074,141.47,141.4,0.59240574]
[1768777813158,5.49531172,141.44,141.4,0.59240574]
[1768777813979,25.44782448,141.47,141.4,7.66447895]
[1768777814185,5.49531172,141.45,141.4,7.66447895]
[1768777815178,5.49531172,141.44,141.4,7.66447895]
[1768777815681,12.56550007,141.44,141.4,0.59240574]
[1768777816286,7.07018835,141.44,141.4,0.59240574]
[1768777816585,5.49531172,141.43,141.38,7.07301878]
[1768777816963,0.70746374,141.47,141.39,6.08771746]
[1768777817283,12.56396281,141.47,141.42,7.07113562]
[1768777817586,5.49531172,141.45,141.39,23.14499727]
[1768777817895,5.49531172,141.43,141.39,23.14499727]
[1768777818194,5.49531172,141.43,141.4,30.0]
[1768777818754,5.49531172,141.43,141.39,7.66499727]
[1768777819180,5.49531172,141.42,141.37,23.1455663]
[1768777819381,5.49531172,141.41,141.36,7.07373454]
[1768777819562,5.49531172,141.39,141.35,0.59240574]
[1768777819762,5.49531172,141.39,141.36,7.07408789]
[1768777820867,5.49531172,141.41,141.36,7.66649363]
[1768777821072,5.49531172,141.4,141.36,7.66649363]
[1768777822857,0.70746374,141.43,141.38,0.87386913]
[1768777823063,13.2725703,141.45,141.39,6.36918085]
[1768777823576,13.2725703,141.45,141.4,5.49531172]
[1768777824095,13.2725703,141.45,141.39,0.87386913]
[1768777824096,5.49531172,141.44,141.39,13.44154542]
[1768777824270,13.2725703,141.45,141.39,13.44154542]
[1768777825195,5.49531172,141.44,141.39,13.44154542]
[1768777825379,5.49531172,141.43,141.39,7.9462337]
[1768777825979,12.56546606,141.44,141.39,7.9462337]
[1768777826483,12.56546606,141.44,141.39,7.67799086]
[1768777827197,5.49531172,141.44,141.39,7.67799086]
[1768777827800,7.07023451,141.44,141.39,7.67799086]
[1768777828002,0.70746374,141.43,141.39,7.67799086]
[1768777829070,0.70746374,141.43,141.39,13.17330258]
[1768777829489,0.70746374,141.43,141.39,7.67799086]
[1768777829885,0.70746374,141.43,141.37,0.87386913]
[1768777829886,5.49531172,141.42,141.37,0.87386913]
[1768777830097,5.49531172,141.41,141.37,0.87386913]
[1768777830298,14.21593518,141.43,141.37,6.36918085]
[1768777830509,5.49531172,141.44,141.39,7.94633072]
[1768777830804,0.70746374,141.43,141.39,7.94633072]
[1768777831175,5.49531172,141.42,141.38,7.07297121]
[1768777831379,5.49531172,141.4,141.37,0.87386913]
[1768777831702,5.49531172,141.4,141.36,7.07397562]
[1768777831903,0.94232346,141.4,141.33,33.16865918]
[1768777832077,6.43763518,141.4,141.34,5.49531172]
[1768777832472,6.43763518,141.4,141.33,33.16865918]
[1768777832706,6.43763518,141.39,141.34,5.49531172]
[1768777832872,6.43438342,141.39,141.34,5.49205996]
[1768777833199,6.43438342,141.39,141.34,12.5670235]
[1768777833200,13.50727504,141.39,141.34,12.5670235]
[1768777833580,0.94232346,141.39,141.35,5.49205996]
[1768777834082,0.94232346,141.39,141.36,5.49205996]
[1768777834301,8.72151171,141.41,141.35,0.87386913]
[1768777834601,8.01404797,141.41,141.36,5.49205996]
[1768777834792,8.01404797,141.41,141.35,6.36592909]
[1768777834985,8.01404797,141.41,141.35,0.87386913]
[1768777835183,8.01404797,141.41,141.35,6.36592909]
[1768777835898,7.07013574,141.44,141.39,0.87386913]
[1768777836082,0.70746374,141.43,141.39,6.36592909]
[1768777836481,7.77759948,141.44,141.39,6.36592909]
[1768777836678,14.2119829,141.44,141.39,6.36592909]
[1768777836991,8.71992294,141.44,141.39,0.87386913]
[1768777837302,7.14184716,141.44,141.39,6.36592909]
[1768777837473,7.14184716,141.44,141.39,0.87386913]
[1768777837803,14.21200345,141.44,141.39,13.4381291]
[1768777838403,8.71994349,141.44,141.39,13.4381291]
[1768777838706,1.6497872,141.44,141.4,5.49205996]
[1768777838879,8.71994092,141.44,141.4,5.49205996]
[1768777839283,8.71994092,141.44,141.39,7.94606914]
[1768777839507,14.21200088,141.44,141.39,7.94606914]
[1768777839674,14.21200088,141.44,141.39,13.4381291]
[1768777839876,6.59834592,141.43,141.38,12.56508574]
[1768777840075,1.10628596,141.43,141.39,7.07263131]
[1768777840579,6.59834592,141.43,141.38,1.08731786]
[1768777840782,7.30580966,141.42,141.37,22.55328621]
[1768777841003,6.59834592,141.41,141.37,15.48]
[1768777841508,6.59834592,141.4,141.35,12.56637283]
[1768777841708,1.10628596,141.4,141.36,7.07410609]
[1768777841883,1.10628596,141.4,141.36,12.56616605]
[1768777842800,1.8137497,141.4,141.36,12.56616605]
[1768777843102,1.10628596,141.4,141.36,12.56616605]
[1768777844090,13.67064806,141.4,141.36,1.08731786]
[1768777844276,8.1785881,141.4,141.36,1.08731786]
[1768777844483,13.67064806,141.4,141.36,8.16131326]
[1768777845023,1.10628596,141.4,141.36,13.65337322]
[1768777845607,13.27133285,141.41,141.36,13.65337322]
[1768777845901,0.70746374,141.41,141.39,7.07263597]
[1768777846098,1.10628596,141.44,141.4,5.49205996]
[1768777846287,1.8137497,141.44,141.4,6.57937782]
[1768777846599,0.70746374,141.45,141.42,5.49205996]
[1768777846805,1.10628596,141.5,141.44,6.57937782]
[1768777846983,6.59834592,141.47,141.42,20.97205996]
[1768777847185,1.10628596,141.47,141.42,15.48]
[1768777847406,6.59834592,141.47,141.42,20.97205996]
[1768777847706,6.59834592,141.47,141.42,15.48]
[1768777847884,6.59834592,141.47,141.43,7.07063565]
[1768777848075,13.66712993,141.47,141.43,7.07063565]
[1768777848476,8.17506997,141.47,141.43,7.07063565]
[1768777848787,6.59834592,141.48,141.43,12.56269561]
[1768777848998,1.10628596,141.48,141.43,13.65001347]
[1768777850699,1.10628596,141.48,141.44,1.08731786]
[1768777850879,12.5600141,141.49,141.44,1.08731786]
[1768777851076,6.59834592,141.48,141.43,7.07063565]
[1768777851400,1.10628596,141.46,141.41,15.48]
[1768777851585,6.59834592,141.45,141.4,1.08731786]
[1768777851993,6.59834592,141.44,141.4,1.08731786]
[1768777852184,6.59834592,141.44,141.4,8.15945223]
[1768777852381,1.18394419,141.43,141.39,5.49205996]
[1768777852586,5.49205996,141.4,141.35,22.55453071]
[1768777852779,5.49205996,141.4,141.35,28.04659067]
[1768777853183,6.67600415,141.41,141.35,28.04659067]
[1768777853705,6.67600415,141.41,141.36,5.49205996]
[1768777853898,1.18394419,141.41,141.36,5.49205996]
[1768777854401,8.25560789,141.41,141.36,5.49205996]
[1768777854911,13.74766785,141.41,141.36,12.5659428]
[1768777855091,13.74766785,141.41,141.36,7.07388284]
[1768777855289,5.49205996,141.4,141.35,13.80707896]
[1768777855483,5.49205996,141.4,141.35,29.28707896]
[1768777855702,5.49205996,141.4,141.36,7.07408891]
[1768777856405,6.67600415,141.41,141.36,13.80665953]
[1768777856702,1.18394419,141.44,141.39,6.73257062]
[1768777857006,6.67600415,141.42,141.39,15.48]
[1768777857792,5.49205996,141.41,141.37,8.31408352]
[1768777857989,6.67600415,141.41,141.37,7.07357286]
[1768777858188,5.49205996,141.4,141.37,22.55357286]
[1768777859207,6.67600415,141.41,141.37,22.55357286]
[1768777859682,1.18394419,141.41,141.37,28.04563282]
[1768777860819,1.18394419,141.4,141.34,1.24051066]
[1768777861113,6.67600415,141.39,141.32,1.24051066]
[1768777861317,24.75597679,141.38,141.29,1.24051066]
[1768777861488,5.49205996,141.33,141.29,1.24051066]
[1768777861684,5.43205997,141.33,141.29,1.24051066]
[1768777862187,60.12165793,141.38,141.3,8.31759501]
[1768777862188,5.49205996,141.35,141.3,8.31759501]
[1768777863205,0.03682591,141.37,141.31,6.73257062]
[1768777863411,7.07313622,141.38,141.32,6.73257062]
[1768777863602,5.49205996,141.38,141.34,1.24051066]
[1768777863808,5.49205996,141.38,141.32,6.73257062]
[1768777863992,5.49205996,141.37,141.32,6.73257062]
[1768777864195,5.5469822,141.38,141.32,1.24051066]
[1768777864498,5.56487068,141.37,141.31,6.73257062]
[1768777864693,24.7543487,141.39,141.29,13.81014441]
[1768777864694,0.07281072,141.38,141.29,13.81014441]
[1768777864890,5.49205996,141.36,141.31,1.24051066]
[1768777865311,12.65634856,141.37,141.32,5.49205996]
[1768777865609,7.07327064,141.38,141.34,1.24051066]
[1768777865816,5.49205996,141.37,141.32,1.24051066]
[1768777865986,12.65582432,141.38,141.33,5.49205996]
[1768777866186,12.65582432,141.38,141.33,6.73257062]
[1768777866604,7.16376436,141.38,141.33,6.73257062]
[1768777867209,12.65582432,141.38,141.32,12.56800315]
[1768777867410,5.49205996,141.34,141.29,1.24051066]
[1768777867907,0.13202014,141.36,141.29,13.80999013]
[1768777868100,5.49205996,141.34,141.29,13.80999013]
[1768777869228,12.56739922,141.34,141.29,13.80999013]
[1768777870518,5.68459814,141.33,141.28,5.49205996]
[1768777870821,5.68459814,141.33,141.26,18.41530331]
[1768777870822,5.49205996,141.3,141.26,18.41530331]
[1768777871004,5.43205997,141.3,141.26,18.41530331]
[1768777871198,7.07533926,141.34,141.28,6.73257062]
[1768777871401,12.5668486,141.35,141.3,6.73257062]
[1768777872106,12.5668486,141.35,141.3,1.24051066]